bitfinex/quotes_ETHUSD_20240722
["timestamp","ask_amount","ask_price","bid_price","bid_amount"]
[1721662472987,0.1490996,3462.7,3462.3,2.8882]
[1721662474777,0.1490996,3462.7,3462.3,2.88819]
[1721662474984,0.1490996,3462.7,3462.4,2.88816]
[1721662475350,0.1490996,3462.7,3462.3,2.88819]
[1721662475575,0.1490996,3462.7,3462.4,2.8881]
[1721662475771,0.1490996,3462.7,3462.5,2.88806]
[1721662476077,0.1490996,3462.7,3462.3,5.77636]
[1721662476282,0.1490996,3462.7,3462.4,2.88816]
[1721662476668,0.1490996,3462.7,3462.4,2.8881]
[1721662476884,0.1490996,3462.7,3462.5,2.88807]
[1721662477179,0.1490996,3462.7,3462.4,5.7762]
[1721662477382,0.1490996,3462.7,3462.4,2.8881]
[1721662478409,0.1490996,3462.7,3462.3,2.88824]
[1721662478588,0.1490996,3462.7,3462.4,2.88815]
[1721662481488,0.1490996,3462.7,3462.2,2.88825]
[1721662481713,0.1490996,3462.7,3462.2,2.88829]
[1721662481989,3.0370696,3462.7,3462.2,2.88828]
[1721662482215,0.1490996,3462.7,3462.2,2.88828]
[1721662482412,0.1490996,3462.7,3462.4,2.88816]
[1721662482774,0.1490996,3462.7,3462.5,2.88806]
[1721662483374,0.1490996,3462.7,3462.3,2.88819]
[1721662483983,0.1490996,3462.7,3462.3,5.77638]
[1721662484179,0.1490996,3462.7,3462.3,5.77639]
[1721662484409,0.1490996,3462.7,3462.4,2.88816]
[1721662484572,0.1490996,3462.7,3462.5,2.88807]
[1721662484906,0.1490996,3462.7,3462.5,2.84472]
[1721662485106,0.1490996,3462.7,3462.3,2.88819]
[1721662485403,0.1490996,3462.7,3462.4,2.88816]
[1721662485817,0.1490996,3462.7,3462.6,2.888]
[1721662486017,0.1490996,3462.7,3462.6,5.776]
[1721662486605,0.1490996,3462.7,3462.6,8.664]
[1721662487300,0.1490996,3462.7,3462.6,5.776]
[1721662489213,0.1490996,3462.7,3462.6,11.664]
[1721662489414,0.1490996,3462.7,3462.6,13.6981016]
[1721662489590,0.1490996,3462.7,3462.6,16.5861016]
[1721662490042,0.1490996,3462.7,3462.6,13.6981016]
[1721662490241,0.1490996,3462.7,3462.6,16.5861016]
[1721662490423,0.1490996,3462.7,3462.6,19.0644016]
[1721662490823,0.1490996,3462.7,3462.6,16.1764016]
[1721662491268,0.1490996,3462.7,3462.6,19.0644016]
[1721662492312,1e-08,3462.7,3462.6,19.0644016]
[1721662492712,1e-08,3462.7,3462.6,16.1764016]
[1721662492945,1e-08,3462.7,3462.6,19.0644016]
[1721662495812,1e-08,3462.7,3462.6,21.9524016]
[1721662496016,1e-08,3462.7,3462.6,19.0644016]
[1721662496281,1e-08,3462.7,3462.6,21.9524016]
[1721662496755,2.2528,3464.3,3463.9,2.88686]
[1721662498031,2.2528,3464.3,3464.1,2.88674]
[1721662498234,2.88636,3464.6,3464.1,2.88674]
[1721662499046,4.43522283,3464.6,3464.0,2.88683]
[1721662499444,2.88642,3464.5,3463.9,2.88691]
[1721662499682,2.88664,3464.3,3463.6,2.88711]
[1721662499861,2.88654,3464.4,3463.1,3.0]
[1721662500031,2.8867,3464.2,3463.5,2.88719]
[1721662500232,2.88658,3464.3,3463.7,2.88704]
[1721662500449,2.88678,3464.1,3463.6,3.0]
[1721662500859,3.61877728,3464.3,3463.7,2.88708]
[1721662501053,0.73219728,3464.3,3463.8,2.88694]
[1721662501371,1.54886283,3464.6,3463.6,3.0]
[1721662501372,2.88673,3464.2,3463.6,5.88716]
[1721662501670,2.88672,3464.2,3463.6,5.88716]
[1721662501973,2.88672,3464.2,3463.6,5.88712]
[1721662502376,2.88687,3464.0,3463.6,3.0]
[1721662502675,2.4694,3463.9,3463.4,5.88728]
[1721662502871,2.4694,3463.9,3463.5,2.88724]
[1721662503080,2.4694,3463.9,3463.6,3.0]
[1721662503779,2.4694,3463.9,3463.6,2.88715]
[1721662503983,2.4694,3463.9,3463.5,2.88724]
[1721662504281,2.4694,3463.9,3463.6,3.0]
[1721662504572,2.4694,3463.9,3463.4,6.819788]
[1721662504936,2.88643,3464.5,3463.7,2.88704]
[1721662504937,2.88659,3464.3,3463.7,2.88704]
[1721662505380,2.4681,3464.4,3463.6,2.88708]
[1721662505381,5.3546,3464.4,3463.8,2.88698]
[1721662505779,2.88666,3464.3,3463.7,2.88706]
[1721662506080,5.35464,3464.4,3463.8,2.88697]
[1721662506538,5.35464,3464.4,3463.8,2.88698]
[1721662506737,5.35464,3464.4,3463.6,5.7742]
[1721662506738,2.88663,3464.3,3463.6,5.7742]
[1721662506986,2.8866,3464.3,3463.6,2.88708]
[1721662507143,2.88687,3464.0,3463.4,5.88727]
[1721662507339,2.88679,3464.1,3462.7,2.88791]
[1721662507340,2.88734,3463.4,3462.7,2.88791]
[1721662507542,2.88734,3463.4,3462.6,1.4841016]
[1721662507543,2.88756,3463.2,3462.6,1.4841016]
[1721662507797,2.4381,3463.4,3461.9,2.88855]
[1721662507942,2.4381,3463.4,3461.1,5.34321]
[1721662507943,2.88786,3462.8,3461.1,5.34321]
[1721662508143,2.88797,3462.7,3462.1,2.88841]
[1721662508343,2.88797,3462.7,3461.9,2.88854]
[1721662508344,5.32607,3462.7,3461.9,2.88854]
[1721662508940,5.28253,3463.1,3462.3,2.8882]
[1721662509175,5.28253,3463.1,3461.2,5.3607]
[1721662509176,2.3949,3463.1,3462.7,2.88787]
[1721662509340,7.32,3463.4,3462.7,2.88787]
[1721662509541,10.20685,3464.0,3462.6,2.88797]
[1721662509843,10.20687,3464.0,3463.2,2.88749]
[1721662510066,2.88709,3463.7,3463.2,2.88748]
[1721662510305,7.32,3464.0,3463.2,2.88748]
[1721662510451,2.88688,3464.0,3463.4,2.88728]
[1721662511093,2.3949,3464.1,3463.5,2.88719]
[1721662511294,5.28165,3464.1,3463.4,2.88727]
[1721662511448,2.3949,3464.1,3463.4,2.88727]
[1721662511782,2.3949,3464.1,3463.5,2.88719]
[1721662511783,5.28171,3464.1,3463.5,2.88719]
[1721662511988,2.3949,3464.1,3463.2,0.288748]
[1721662512466,2.3949,3464.1,3463.4,2.8873]
[1721662512668,2.3949,3464.1,3463.5,2.88723]
[1721662512869,5.28167,3464.1,3463.5,2.88723]
[1721662513071,2.3949,3464.1,3463.5,2.88718]
[1721662513277,2.88652,3464.4,3463.6,2.8871]
[1721662513643,2.88663,3464.3,3463.6,2.8871]
[1721662513986,2.88652,3464.4,3463.6,2.8871]
[1721662514278,2.88663,3464.3,3463.6,2.8871]
[1721662514494,2.88659,3464.3,3463.6,2.8871]
[1721662514648,2.88659,3464.3,3463.7,0.32046928]
[1721662514845,2.88659,3464.3,3463.6,2.8871]
[1721662515051,2.88659,3464.3,3463.4,2.8873]
[1721662515052,2.88675,3464.1,3463.4,5.77453]
[1721662515252,2.88677,3464.1,3463.4,2.88726]
[1721662515489,2.88681,3464.1,3463.2,3.176168]
[1721662515652,2.88681,3464.1,3463.5,2.88724]
[1721662515852,2.88684,3464.0,3463.4,2.88732]
[1721662516194,2.88693,3463.9,3463.2,6.063628]
[1721662516349,2.88721,3463.6,3462.7,3.0]
[1721662516549,2.88738,3463.4,3462.8,2.88779]
[1721662516763,2.454,3463.8,3462.4,0.28882]
[1721662517093,2.88776,3462.9,3462.1,2.88837]
[1721662517310,2.88776,3462.9,3461.4,0.60216519]
[1721662517311,2.88784,3462.8,3461.9,2.88852]
[1721662517449,2.88801,3462.6,3462.0,2.88849]
[1721662517645,2.88793,3462.7,3462.0,2.88849]
[1721662517900,2.88775,3462.9,3462.0,2.88843]
[1721662518056,2.4941,3463.2,3462.5,2.88807]
[1721662518258,11.10853754,3463.5,3462.9,2.88768]
[1721662518259,7.32,3463.5,3462.9,2.88768]
[1721662518462,2.8873,3463.5,3462.8,2.88778]
[1721662518659,5.38126,3463.7,3463.0,2.88766]
[1721662518990,11.10803754,3464.1,3462.3,5.25982]
[1721662518991,10.42095147,3464.1,3463.2,2.88742]
[1721662519153,2.88689,3464.0,3463.3,0.288742]
[1721662519356,2.88697,3463.9,3463.3,0.288742]
[1721662519560,2.88689,3464.0,3463.3,0.288742]
[1721662519561,2.88689,3464.0,3463.3,3.176142]
[1721662519766,2.88689,3464.0,3463.3,0.288742]
[1721662519963,9.8141,3464.1,3463.3,2.88737]
[1721662519964,2.88692,3463.9,3463.3,2.88737]
[1721662520180,10.20679,3464.1,3462.9,5.88772]
[1721662520379,10.20679,3464.1,3463.3,2.88735]
[1721662520380,7.32,3464.1,3463.3,2.88735]
[1721662520719,7.32,3464.1,3463.6,2.88712]
[1721662520874,2.88653,3464.4,3463.8,2.88695]
[1721662521073,2.88653,3464.4,3463.1,2.3049]
[1721662521074,2.88658,3464.3,3463.4,2.8873]
[1721662521380,2.88653,3464.4,3463.7,2.88704]
[1721662521911,2.88653,3464.4,3463.8,2.88694]
[1721662522072,5.7731,3464.4,3463.8,2.88698]
[1721662522262,2.88654,3464.4,3463.8,2.88695]
[1721662522575,2.88646,3464.5,3463.9,2.88686]
[1721662523197,2.88646,3464.5,3463.7,2.88701]
[1721662523401,2.88646,3464.5,3463.8,2.88695]
[1721662523609,2.88684,3464.0,3462.6,3.85410239]
[1721662523809,2.88684,3464.0,3463.1,2.88753]
[1721662523964,2.88684,3464.0,3463.3,2.88734]
[1721662524166,2.88701,3463.8,3463.0,2.88759]
[1721662524375,2.88731,3463.5,3462.9,2.88768]
[1721662524616,2.88731,3463.5,3462.9,6.587737]
[1721662524772,2.88731,3463.5,3462.9,3.700047]
[1721662524968,2.88734,3463.4,3462.9,0.812367]
[1721662525169,2.88751,3463.2,3462.6,2.88798]
[1721662525376,6.27727754,3463.8,3462.8,2.88783]
[1721662525377,3.49406147,3463.6,3462.8,2.88783]
[1721662525601,2.88734,3463.4,3462.8,2.88783]
[1721662525771,2.88734,3463.4,3462.8,2.88778]
[1721662525968,2.88734,3463.4,3462.8,3.176558]
[1721662526179,2.88715,3463.7,3462.8,3.176548]
[1721662526386,2.88715,3463.7,3463.0,2.88764]
[1721662527006,2.88715,3463.7,3463.1,2.88758]
[1721662527435,2.489,3463.8,3463.1,2.88758]
[1721662527733,2.489,3463.8,3463.3,2.88741]
[1721662527894,5.37601,3463.8,3463.3,2.88741]
[1721662528099,2.489,3463.8,3463.3,2.88741]
[1721662528295,8.22125754,3464.1,3463.3,2.88734]
[1721662528296,3.49372147,3464.0,3463.3,2.88734]
[1721662528499,2.88692,3463.9,3463.3,2.8874]
[1721662528737,0.60685147,3464.0,3463.3,2.8874]
[1721662528738,0.60685147,3464.0,3463.5,2.88723]
[1721662528900,0.60685147,3464.0,3463.4,0.577494]
[1721662528901,3.49368147,3464.0,3463.4,0.577494]
[1721662529098,2.88683,3464.0,3463.4,2.88731]
[1721662529840,3.49368147,3464.0,3463.4,2.88731]
[1721662530226,2.88701,3463.8,3463.2,2.88749]
[1721662530403,8.22125754,3464.1,3462.9,2.88769]
[1721662530404,2.88721,3463.6,3462.9,2.88769]
[1721662530597,2.8873,3463.5,3463.0,3.0]
[1721662530818,2.88734,3463.4,3463.0,3.7696426]
[1721662531819,2.88755,3463.2,3462.9,3.0]
[1721662532032,2.88755,3463.2,3462.6,2.88794]
[1721662532033,2.88787,3462.8,3462.1,3.177253]
[1721662532202,0.60685147,3463.1,3462.1,3.177253]
[1721662532405,2.88793,3462.7,3462.2,0.6065783]
[1721662532638,3.49457147,3463.0,3462.2,0.6065783]
[1721662532823,2.88795,3462.7,3461.7,2.4235]
[1721662533027,2.88783,3462.8,3462.1,2.88835]
[1721662533342,2.88788,3462.8,3462.2,2.88832]
[1721662533501,2.88788,3462.8,3462.0,2.88845]
[1721662533502,2.88801,3462.6,3462.0,2.88845]
[1721662533702,2.88793,3462.7,3462.1,2.88837]
[1721662533904,2.88788,3462.8,3461.9,2.88851]
[1721662534100,2.88801,3462.6,3462.0,5.8885]
[1721662534305,2.88801,3462.6,3462.0,2.8885]
[1721662534543,3.49473147,3462.8,3461.9,3.766242]
[1721662534544,2.88809,3462.5,3461.9,3.766242]
[1721662534743,2.88809,3462.5,3462.0,3.0]
[1721662535069,2.88794,3462.7,3462.0,3.0]
[1721662535070,2.888,3462.7,3462.0,3.0]
[1721662535224,2.88799,3462.7,3462.0,3.0]
[1721662535554,2.88795,3462.7,3462.1,6.4534242]
[1721662535727,2.88795,3462.7,3462.1,0.6766242]
[1721662535728,2.88799,3462.7,3462.1,0.6766242]
[1721662535899,2.88801,3462.6,3462.1,0.6766242]
[1721662536106,2.88792,3462.7,3462.1,3.5650342]
[1721662536358,5.77592,3462.7,3462.1,3.5650342]
[1721662536518,2.88792,3462.7,3462.1,3.5650342]
[1721662536929,2.88796,3462.7,3462.1,3.5650342]
[1721662537101,2.88796,3462.7,3462.1,3.5649842]
[1721662537304,2.88796,3462.7,3462.0,3.0]
[1721662537305,2.88796,3462.7,3462.2,3.83368142]
[1721662537730,2.88796,3462.7,3462.0,3.0]
[1721662537731,2.88812,3462.5,3462.0,3.0]
[1721662538608,0.60685147,3463.0,3462.0,3.0]
[1721662538840,0.90125754,3463.1,3461.3,2.3056]
[1721662538841,2.88789,3462.8,3462.2,2.88829]
[1721662539046,0.90125754,3463.2,3462.4,2.88815]
[1721662539047,2.88776,3462.9,3462.4,2.88815]
[1721662539215,2.88784,3462.8,3462.3,2.88825]
[1721662539412,2.88784,3462.8,3462.3,3.52092]
[1721662539608,0.60685147,3463.2,3462.3,0.63267]
[1721662539852,0.11402268,3463.3,3462.6,2.88795]
[1721662540158,3.00148268,3463.3,3462.7,2.88786]
[1721662540310,3.00148268,3463.3,3462.7,2.88791]
[1721662540311,2.88752,3463.2,3462.7,2.88791]
[1721662540502,2.88752,3463.2,3462.5,2.88803]
[1721662540503,0.11402268,3463.3,3462.3,5.88819]
[1721662540732,2.56802268,3463.3,3461.7,5.31619]
[1721662541007,2.88812,3462.5,3461.9,2.88853]
[1721662541208,2.88792,3462.7,3462.1,2.88841]
[1721662541448,2.88805,3462.6,3462.0,3.43848]
[1721662541625,2.88805,3462.6,3462.1,3.0]
[1721662541965,2.8878,3462.9,3462.2,2.88826]
[1721662542131,2.8878,3462.9,3462.3,1.193826]
[1721662542452,2.8878,3462.9,3462.3,0.643826]
[1721662542653,0.60685147,3463.2,3462.1,3.0]
[1721662542654,0.60685147,3463.0,3462.1,3.0]
[1721662542859,2.88803,3462.6,3462.1,3.0]
[1721662543062,2.88785,3462.8,3462.1,5.88841]
[1721662543285,2.88779,3462.9,3462.2,2.88833]
[1721662543556,2.88792,3462.7,3462.2,3.477163]
[1721662543715,2.88792,3462.7,3462.2,0.588833]
[1721662543910,0.60685147,3462.9,3462.1,3.0]
[1721662544112,0.60685147,3462.9,3461.8,0.59183552]
[1721662544113,2.88826,3462.3,3461.8,0.59183552]
[1721662544366,2.88842,3462.1,3461.8,3.0]
[1721662544514,5.98898147,3462.7,3461.4,2.88893]
[1721662544515,0.60685147,3462.6,3461.4,2.88893]
[1721662544718,2.88869,3461.8,3461.2,2.88909]
[1721662544921,2.88855,3462.0,3461.2,3.2104475]
[1721662545118,3.65554068,3462.5,3461.6,2.88878]
[1721662545119,0.60685147,3462.3,3461.6,2.88878]
[1721662545441,2.88823,3462.4,3461.7,2.88873]
[1721662545616,2.88805,3462.6,3461.9,2.88854]
[1721662545956,9.8142,3462.7,3461.9,2.88851]
[1721662546218,2.88805,3462.6,3461.9,2.88851]
[1721662546377,9.8142,3462.7,3461.9,2.88851]
[1721662546378,7.32,3462.7,3462.0,2.88849]
[1721662546675,2.88805,3462.6,3462.0,2.88849]
[1721662546838,2.88805,3462.6,3461.9,0.577721]
[1721662546839,7.32,3462.7,3461.9,0.577721]
[1721662547174,7.32,3462.7,3461.7,2.326]
[1721662547175,7.32,3462.7,3462.0,0.55]
[1721662547330,7.32,3462.7,3461.8,3.0]
[1721662547331,7.32,3462.7,3462.3,2.88819]
[1721662547526,7.32,3462.7,3462.4,0.55]
[1721662547725,10.20798,3462.7,3462.0,2.88847]
[1721662547963,10.20798,3462.7,3462.1,3.0]
[1721662548125,2.88817,3462.4,3461.9,3.0]
[1721662548323,2.88817,3462.4,3461.9,3.877744]
[1721662549476,2.888,3462.6,3461.9,3.877744]
[1721662549624,0.60685147,3462.8,3461.9,3.877744]
[1721662549625,3.49473147,3462.8,3461.9,3.877744]
[1721662549828,0.60685147,3463.1,3462.0,2.88844]
[1721662550035,2.88791,3462.8,3462.1,5.88838]
[1721662550231,2.88792,3462.7,3462.2,0.9654564]
[1721662550474,2.88804,3462.6,3462.2,0.9654564]
[1721662550875,2.88804,3462.6,3462.1,2.88841]
[1721662551199,2.88804,3462.6,3462.0,2.8885]
[1721662551381,2.88805,3462.6,3462.1,3.0]
[1721662551576,2.88786,3462.8,3462.1,3.0]
[1721662551737,2.88792,3462.7,3462.1,2.88836]
[1721662551937,2.88792,3462.7,3462.1,0.588836]
[1721662552171,2.88792,3462.7,3462.1,3.588836]
[1721662552490,2.88801,3462.6,3462.1,3.588836]
[1721662552793,0.60685147,3463.0,3462.1,3.588836]
[1721662552998,2.88806,3462.6,3462.1,3.0]
[1721662553362,2.8878,3462.9,3462.3,2.88822]
[1721662554253,2.8878,3462.9,3462.3,2.88817]
[1721662554752,0.60685147,3463.1,3462.4,0.0577605]
[1721662554957,1.01528022,3463.3,3462.3,2.4011]
[1721662554958,0.11402268,3463.3,3462.8,2.88777]
[1721662555654,3.00148268,3463.3,3462.6,2.88794]
[1721662555855,0.11402268,3463.3,3462.9,2.88771]
[1721662556498,0.11402268,3463.3,3462.5,0.79588605]
[1721662556705,0.11402268,3463.3,3463.0,2.88765]
[1721662557409,0.11402268,3463.3,3463.2,2.8875]
[1721662557571,0.11402268,3463.3,3463.2,6.325]
[1721662560922,0.11402268,3463.3,3463.2,0.55]
[1721662561062,0.11402268,3463.3,3463.1,5.88751]
[1721662561265,0.11402268,3463.3,3463.1,3.0]
[1721662561463,0.11402268,3463.3,3463.0,3.0]
[1721662561793,0.11402268,3463.3,3463.0,5.88765]
[1721662562362,0.11402268,3463.3,3463.0,3.0]
[1721662562675,0.11402268,3463.3,3463.0,5.8876]
[1721662563082,0.11402268,3463.3,3463.1,2.88758]
[1721662563289,0.11402268,3463.3,3463.2,2.8875]
[1721662564611,0.11402268,3463.3,3463.2,6.325]
[1721662566008,0.11402268,3463.3,3463.2,3.4375]
[1721662566242,0.11402268,3463.3,3463.2,6.325]
[1721662567382,0.11402268,3463.3,3463.2,9.325]
[1721662567710,0.11402268,3463.3,3463.2,14.0273677]
[1721662568002,0.11402268,3463.3,3463.2,11.1398677]
[1721662570501,0.11402268,3463.3,3463.2,5.8875]
[1721662570980,0.11402268,3463.3,3463.2,8.775]
[1721662571986,0.11402268,3463.3,3463.2,9.325]
[1721662572997,0.11402268,3463.3,3463.2,3.55]
[1721662573195,0.11402268,3463.3,3463.2,6.4375]
[1721662573395,0.11402268,3463.3,3463.2,5.8875]
[1721662574118,0.11402268,3463.3,3463.2,3.0]
[1721662574423,0.11402268,3463.3,3462.6,2.88799]
[1721662574626,0.11402268,3463.3,3462.7,2.88788]
[1721662574828,0.11402268,3463.3,3462.9,2.88771]
[1721662575118,0.11402268,3463.3,3463.1,2.88758]
[1721662575319,0.11402268,3463.3,3463.2,2.8875]
[1721662575514,0.11402268,3463.3,3463.2,5.775]
[1721662575828,0.11402268,3463.3,3463.2,6.325]
[1721662576588,0.11402268,3463.3,3463.2,9.325]
[1721662577705,0.11402268,3463.3,3463.2,12.2125]
[1721662577918,0.11402268,3463.3,3463.2,13.722521]
[1721662579713,0.11402268,3463.3,3463.2,10.835021]
[1721662580242,0.11402268,3463.3,3462.9,2.88773]
[1721662580396,0.11402268,3463.3,3462.8,2.88777]
[1721662580794,0.11402268,3463.3,3462.3,2.88822]
[1721662580998,0.11402268,3463.3,3462.8,2.88782]
[1721662581195,2.88755,3463.2,3462.6,2.88795]
[1721662581420,0.11402268,3463.3,3462.8,2.88779]
[1721662581652,3.00144268,3463.3,3462.7,2.88791]
[1721662582064,0.11402268,3463.3,3462.8,2.88781]
[1721662582272,0.11402268,3463.3,3462.7,2.88791]
[1721662582273,0.11402268,3463.3,3462.9,2.88774]
[1721662582439,3.00144268,3463.3,3462.8,2.88783]
[1721662582618,0.11402268,3463.3,3462.8,2.88783]
[1721662582820,0.11402268,3463.3,3462.6,0.288795]
[1721662583028,0.11402268,3463.3,3462.9,2.88771]
[1721662583256,0.11402268,3463.3,3462.6,0.288795]
[1721662583257,0.11402268,3463.3,3463.0,2.88766]
[1721662583458,0.11402268,3463.3,3463.2,2.8875]
[1721662584077,0.11402268,3463.3,3463.2,3.4375]
[1721662584284,0.11402268,3463.3,3463.1,2.88754]
[1721662584856,0.11402268,3463.3,3463.1,2.88751]
[1721662585454,0.11402268,3463.3,3463.1,3.49680005]
[1721662585990,0.11402268,3463.3,3463.2,2.8875]
[1721662586160,0.11402268,3463.3,3463.1,3.49687005]
[1721662586946,0.11402268,3463.3,3463.1,3.49683005]
[1721662587280,0.11402268,3463.3,3463.1,3.49682005]
[1721662587490,0.11402268,3463.3,3463.2,3.26894706]
[1721662588486,0.11402268,3463.3,3463.2,9.70644706]
[1721662590346,0.11402268,3463.3,3463.2,6.81894706]
[1721662590547,0.11402268,3463.3,3463.2,3.0]
[1721662590800,0.11402268,3463.3,3463.2,5.8875]
[1721662592075,0.11402268,3463.3,3463.2,8.775]
[1721662592474,0.11402268,3463.3,3463.2,3.0]
[1721662592679,0.11402268,3463.3,3463.2,5.8875]
[1721662592886,0.11402268,3463.3,3463.2,6.79676805]
[1721662594193,0.11402268,3463.3,3463.2,9.68426805]
[1721662594557,0.11402268,3463.3,3463.2,10.23426805]
[1721662595380,0.11402268,3463.3,3463.2,7.34676805]
[1721662595764,0.11402268,3463.3,3463.2,10.23426805]
[1721662596985,0.11402268,3463.3,3463.2,13.12176805]
[1721662598470,0.11402268,3463.3,3463.2,10.23426805]
[1721662598912,0.11402268,3463.3,3463.2,6.79676805]
[1721662600619,0.11402268,3463.3,3462.9,0.3176505]
[1721662600823,0.11402268,3463.3,3462.8,2.88778]
[1721662600979,0.72087415,3463.3,3462.8,2.88778]
[1721662601173,0.60685147,3463.2,3462.8,2.88778]
[1721662601614,0.60685147,3463.2,3462.6,0.288795]
[1721662601927,0.60685147,3463.2,3462.8,2.88779]
[1721662602241,0.60685147,3463.2,3462.6,0.288795]
[1721662602242,0.60685147,3462.9,3462.5,2.88806]
[1721662602387,0.60685147,3463.0,3462.5,2.88806]
[1721662602585,0.60685147,3463.0,3462.5,2.88802]
[1721662602823,0.60685147,3463.0,3462.6,2.88799]
[1721662603396,3.49443147,3463.1,3462.6,2.88799]
[1721662603613,0.60685147,3463.1,3462.6,2.88799]
[1721662603825,0.60685147,3463.1,3462.6,5.77594]
[1721662604015,0.60685147,3463.1,3462.6,2.88795]
[1721662604524,0.60685147,3463.1,3462.8,2.88778]
[1721662604687,0.72087415,3463.3,3462.9,2.88769]
[1721662604885,0.11402268,3463.3,3463.0,2.88761]
[1721662605083,0.11402268,3463.3,3463.1,2.88758]
[1721662605284,0.11402268,3463.3,3463.2,2.8875]
[1721662606120,0.11402268,3463.3,3463.1,2.88758]
[1721662606524,0.11402268,3463.3,3463.0,0.577539]
[1721662606692,0.11402268,3463.3,3462.8,2.88783]
[1721662606693,0.72087415,3463.3,3462.8,2.88783]
[1721662606898,0.72087415,3463.3,3462.9,0.55]
[1721662607321,0.60685147,3463.2,3462.9,0.55]
[1721662607532,0.60685147,3463.2,3462.9,3.43774]
[1721662607840,0.60685147,3463.2,3462.5,3.0]
[1721662607841,3.60829415,3463.3,3462.7,2.88784]
[1721662608005,0.60685147,3463.2,3462.7,2.88784]
[1721662608200,0.60685147,3463.2,3462.5,5.88805]
[1721662608417,2.3196,3462.9,3462.4,2.88812]
[1721662608652,2.92645147,3462.9,3462.4,2.88812]
[1721662608941,2.92645147,3462.9,3461.7,4.39498309]
[1721662609112,2.92645147,3462.9,3462.3,2.88822]
[1721662609113,3.49469147,3462.8,3462.3,2.88822]
[1721662609604,0.60685147,3462.8,3462.3,5.77641]
[1721662609799,2.92645147,3462.9,3462.0,3.0]
[1721662610034,2.92645147,3462.9,3462.4,2.88811]
[1721662610410,5.81425147,3462.9,3462.3,2.88824]
[1721662610842,2.3196,3462.9,3462.5,2.88807]
[1721662611201,2.3196,3462.9,3462.4,2.88816]
[1721662611948,2.3196,3462.9,3462.5,2.88802]
[1721662612104,2.3196,3462.9,3462.3,3.76585]
[1721662612300,0.60685147,3463.1,3462.7,2.88791]
[1721662612500,0.60685147,3463.1,3462.6,2.88794]
[1721662612501,5.94919415,3463.3,3462.8,2.88782]
[1721662612809,2.88757,3463.2,3462.7,2.88791]
[1721662613126,2.88757,3463.2,3462.9,2.88775]
[1721662613127,0.60685147,3463.2,3462.9,2.88775]
[1721662613455,2.45492268,3463.3,3462.9,2.88774]
[1721662614121,2.88754,3463.2,3462.6,2.88795]
[1721662614343,0.60685147,3463.2,3462.7,3.43784]
[1721662614657,0.60685147,3463.2,3462.7,2.88791]
[1721662614658,3.49437147,3463.2,3462.7,2.88791]
[1721662614857,3.49437147,3463.2,3462.6,2.88793]
[1721662615011,3.49437147,3463.2,3462.3,0.87765]
[1721662615012,5.94919415,3463.3,3462.3,0.87765]
[1721662615210,3.06177415,3463.3,3462.9,2.88773]
[1721662615517,2.45492268,3463.3,3462.9,2.88773]
[1721662616045,5.94919415,3463.3,3462.7,2.88784]
[1721662616216,3.06177415,3463.3,3462.4,0.926596]
[1721662616418,5.34239268,3463.3,3462.8,2.88779]
[1721662616624,5.94924415,3463.3,3462.8,2.88779]
[1721662618159,0.11402268,3463.3,3463.2,2.8875]
[1721662620263,0.11402268,3463.3,3463.2,5.775]
[1721662620462,0.11402268,3463.3,3463.2,2.8875]
[1721662620770,0.11402268,3463.3,3463.2,5.775]
[1721662620941,0.11402268,3463.3,3463.2,6.3525]
[1721662621137,0.11402268,3463.3,3463.2,6.9025]
[1721662622396,0.11402268,3463.3,3463.2,9.9025]
[1721662622597,0.11402268,3463.3,3463.2,12.79]
[1721662623109,0.11402268,3463.3,3463.2,13.79394938]
[1721662623809,0.11402268,3463.3,3463.2,13.79390904]
[1721662623966,0.11402268,3463.3,3463.2,13.79392528]
[1721662624166,0.11402268,3463.3,3463.2,13.7939149]
[1721662624812,0.73227174,3464.5,3464.4,2.8865]
[1721662625024,1.56779428,3464.9,3463.8,3.0]
[1721662625025,0.0551583,3464.9,3463.8,3.0]
[1721662625203,0.0551583,3464.9,3463.9,1.0952]
[1721662625402,0.0551583,3464.9,3464.4,2.88645]
[1721662625701,0.0551583,3464.9,3464.6,2.88626]
[1721662625905,0.0551583,3464.9,3464.8,5.77232]
[1721662626628,0.0551583,3464.9,3464.8,6.32232]
[1721662626807,0.0551583,3464.9,3464.8,7.24319]
[1721662627417,0.0551583,3464.9,3464.8,10.12935]
[1721662627819,0.0551583,3464.9,3464.8,7.24319]
[1721662630015,0.0551583,3464.9,3464.8,10.24319]
[1721662631445,0.0551583,3464.9,3464.8,3.92087]
[1721662631741,0.0551583,3464.9,3464.8,3.0]
[1721662632193,0.0551583,3464.9,3464.1,2.8867]
[1721662632194,2.9412683,3464.9,3464.1,2.8867]
[1721662632392,2.88621,3464.8,3464.1,2.8867]
[1721662632626,0.0551583,3464.9,3463.9,0.5452]
[1721662632851,2.88621,3464.8,3464.0,3.961025]
[1721662633009,2.88646,3464.5,3463.8,2.88696]
[1721662633205,2.88646,3464.5,3463.1,2.476]
[1721662633206,2.3461,3464.4,3463.4,2.88733]
[1721662633652,2.3461,3464.4,3463.1,2.476]
[1721662633653,2.3461,3464.4,3464.2,2.88666]
[1721662634845,2.3461,3464.4,3463.8,2.88696]
[1721662635158,0.0551583,3464.9,3464.5,2.88641]
[1721662635373,0.0551583,3464.9,3464.8,2.88616]
[1721662636311,0.0551583,3464.9,3464.8,6.349567]
[1721662638552,0.0551583,3464.9,3464.8,3.463407]
[1721662638712,0.0551583,3464.9,3464.8,2.88616]
[1721662639357,0.0551583,3464.9,3464.8,5.77232]
[1721662639554,0.0551583,3464.9,3464.8,6.32232]
[1721662641956,0.0551583,3464.9,3464.8,3.43616]
[1721662642292,0.0551583,3464.9,3464.8,6.32232]
[1721662642441,0.0551583,3464.9,3464.8,6.954552]